bitfinex/quotes_ETHUSD_20251010
["timestamp","ask_amount","ask_price","bid_price","bid_amount"]
[1760116156413,6.1002,4110.7,4110.0,16.93307397]
[1760116156614,6.5461,4110.7,4110.0,16.93307397]
[1760116156821,6.5461,4110.7,4110.0,16.93304261]
[1760116157122,0.1216,4110.1,4110.0,16.93309002]
[1760116157315,3.859,4110.2,4110.0,14.5]
[1760116157617,0.1216,4110.6,4110.5,2.43279406]
[1760116157842,2.026,4111.4,4110.6,2.43273488]
[1760116158006,0.1216,4111.2,4110.7,2.45699036]
[1760116158203,0.1216,4111.2,4110.5,0.1216]
[1760116158408,0.1216,4111.2,4110.7,0.4399]
[1760116158736,0.1216,4111.2,4111.1,2.432439]
[1760116159314,0.1216,4111.2,4110.6,2.43273488]
[1760116159502,0.1216,4111.2,4110.5,0.1216]
[1760116159938,0.1216,4111.2,4111.0,2.43247672]
[1760116160341,0.1216,4111.2,4110.8,2.43260818]
[1760116160640,0.1216,4111.2,4110.5,0.1216]
[1760116160641,0.1216,4111.2,4110.6,2.43271666]
[1760116160937,0.1216,4111.2,4111.0,2.43248036]
[1760116161140,0.5631,4111.2,4110.5,0.1216]
[1760116161351,0.5631,4111.2,4108.2,2.55931074]
[1760116161352,0.4415,4111.1,4110.1,0.1216]
[1760116161519,0.1216,4110.7,4110.1,0.1216]
[1760116161722,5.886,4110.6,4109.4,0.4399]
[1760116161919,5.886,4110.6,4110.3,2.43290897]
[1760116162120,5.886,4110.6,4109.7,0.4399]
[1760116162305,6.3275,4110.6,4110.0,16.93308009]
[1760116162514,6.3275,4110.6,4110.0,14.5]
[1760116162815,6.3275,4110.6,4109.3,0.1704]
[1760116163019,6.3275,4110.6,4110.1,2.43301125]
[1760116163020,5.886,4110.6,4110.1,2.43301125]
[1760116163317,5.886,4110.6,4109.5,14.5]
[1760116163642,5.886,4110.6,4110.1,2.4329833]
[1760116163950,5.886,4110.6,4110.3,2.43291134]
[1760116164132,6.3275,4110.6,4110.3,2.43291134]
[1760116164312,6.3275,4110.6,4110.2,2.43295748]
[1760116164513,6.3275,4110.6,4109.7,14.5]
[1760116164817,2.3615,4111.3,4109.7,14.5]
[1760116165018,1.92,4111.1,4110.4,2.43283673]
[1760116165222,1.92,4111.1,4109.7,14.9399]
[1760116165427,0.4415,4111.0,4109.7,14.5]
[1760116165944,0.4415,4110.9,4109.7,14.5]
[1760116166151,3.86,4110.8,4110.2,2.43293104]
[1760116166346,3.86,4110.8,4110.3,2.4329124]
[1760116166557,0.4415,4110.7,4110.3,2.4329124]
[1760116166715,0.4415,4110.7,4110.4,2.43284563]
[1760116166936,3.86,4110.6,4110.5,2.43279406]
[1760116167549,3.86,4110.6,4110.4,2.43285036]
[1760116167727,3.86,4110.6,4110.5,2.43279406]
[1760116168920,3.86,4110.6,4110.4,2.43283412]
[1760116169250,3.86,4110.6,4109.7,16.93322585]
[1760116169552,3.86,4110.6,4110.2,2.43292477]
[1760116169856,3.86,4110.6,4109.7,14.5]
[1760116169857,0.4415,4110.5,4109.7,14.5]
[1760116170220,3.86,4110.6,4109.8,2.43316466]
[1760116170421,3.86,4110.6,4109.7,14.5]
[1760116170925,3.86,4110.6,4109.8,2.43315342]
[1760116171148,3.86,4110.6,4109.7,14.5]
[1760116171521,0.4415,4110.5,4109.7,14.5]
[1760116171743,0.4415,4110.5,4109.7,16.93326381]
[1760116171916,0.1216,4110.1,4109.8,2.43320608]
[1760116172121,3.859,4110.0,4109.7,14.5]
[1760116172530,3.859,4110.0,4108.9,0.4399]
[1760116172740,3.859,4110.0,4109.8,2.43320601]
[1760116173054,2.027,4110.7,4110.2,2.43293058]
[1760116173255,3.859,4110.6,4110.3,2.43286732]
[1760116173455,3.859,4110.6,4110.5,2.43279406]
[1760116174123,3.859,4110.6,4109.5,0.4399]
[1760116174620,3.859,4110.6,4110.5,2.43279406]
[1760116174844,3.859,4110.6,4109.7,0.4399]
[1760116175043,3.859,4110.6,4110.5,2.43279406]
[1760116175365,3.859,4110.6,4109.7,0.6336]
[1760116175849,3.859,4110.6,4110.3,2.43288417]
[1760116176050,0.4415,4110.5,4110.3,14.5]
[1760116176268,0.4415,4110.5,4110.0,2.43308074]
[1760116176423,0.4415,4110.4,4109.9,2.43314922]
[1760116176620,3.859,4110.6,4110.0,14.5]
[1760116176862,3.859,4110.6,4110.0,16.93308127]
[1760116177070,3.859,4110.6,4110.0,14.5]
[1760116177358,4.3005,4110.6,4110.0,14.5]
[1760116177560,4.3005,4110.6,4109.8,0.002]
[1760116177919,30.0,4110.5,4109.8,0.002]
[1760116178150,30.0,4110.3,4109.8,0.002]
[1760116178355,7.407,4110.1,4109.8,0.002]
[1760116178554,3.859,4110.2,4109.8,0.002]
[1760116178759,0.4415,4110.0,4109.8,0.002]
[1760116178958,2.027,4109.9,4109.8,0.002]
[1760116180625,2.4685,4109.9,4109.8,0.002]
[1760116182425,8.76064922,4109.9,4109.8,0.002]
[1760116182634,9.27879516,4109.9,4109.8,0.002]
[1760116183333,39.27879516,4109.9,4109.8,0.002]
[1760116183529,28.93564594,4109.9,4109.8,0.002]
[1760116183743,31.36879516,4109.9,4109.8,0.002]
[1760116184062,9.27879516,4109.9,4109.8,0.002]
[1760116184265,39.27879516,4109.9,4109.8,0.002]
[1760116184464,40.13661634,4109.9,4109.8,0.002]
[1760116184762,34.25061634,4109.9,4109.8,0.002]
[1760116184962,40.13761634,4109.9,4109.8,0.002]
[1760116186239,39.27979516,4109.9,4109.8,0.002]
[1760116187062,40.13761634,4109.9,4109.8,0.002]
[1760116187263,39.27979516,4109.9,4109.8,0.002]
[1760116188451,40.13761634,4109.9,4109.8,0.002]
[1760116188665,39.27979516,4109.9,4109.8,0.002]
[1760116189159,41.19979516,4109.9,4109.8,0.002]
[1760116190057,26.39987383,4109.9,4109.8,0.002]
[1760116190361,26.94079516,4109.9,4109.8,0.002]
[1760116190672,20.24364594,4109.9,4109.8,0.002]
[1760116190968,23.54002305,4109.9,4109.8,0.002]
[1760116191169,41.19879516,4109.9,4109.8,0.002]
[1760116191751,9.86525451,4109.9,4109.8,0.002]
[1760116191948,1.16588524,4109.9,4109.8,0.002]
[1760116192160,5.886,4109.9,4109.8,0.002]
[1760116192402,6.84274594,4109.9,4109.8,0.002]
[1760116193106,37.49048524,4109.9,4109.8,0.002]
[1760116193251,24.59274594,4109.9,4109.8,0.002]
[1760116193596,0.51814594,4109.9,4109.8,0.002]
[1760116193774,5.886,4109.9,4109.8,0.002]
[1760116193954,6.40414594,4109.9,4109.8,0.002]
[1760116194153,6.84274594,4109.9,4109.8,0.002]
[1760116194392,6.40414594,4109.9,4109.8,0.002]
[1760116195081,6.0076,4109.9,4109.8,2.43520842]
[1760116195456,6.0076,4109.9,4109.8,0.002]
[1760116196686,6.0076,4109.9,4109.8,2.43520842]
[1760116196895,6.98606966,4110.8,4109.8,2.90430842]
[1760116197099,0.51878503,4110.7,4110.2,2.43296122]
[1760116197256,3.858,4110.9,4110.3,0.49342912]
[1760116197456,3.858,4110.8,4110.7,2.4326757]
[1760116197703,2.028,4111.6,4110.7,2.4326757]
[1760116197704,3.858,4110.9,4110.8,2.43261652]
[1760116197857,2.028,4111.6,4111.3,2.43226383]
[1760116198162,3.857,4111.5,4111.2,2.43236122]
[1760116198364,3.857,4111.5,4111.0,2.43247189]
[1760116198588,3.857,4111.5,4110.4,14.5]
[1760116198755,3.857,4111.5,4110.4,14.9691]
[1760116198956,3.857,4111.5,4110.9,2.43254784]
[1760116199174,3.857,4111.5,4110.5,0.02432794]
[1760116199372,3.857,4111.5,4110.6,0.4691]
[1760116199691,3.857,4111.5,4110.7,0.02432675]
[1760116200092,3.857,4111.5,4110.4,14.5]
[1760116200423,30.9528893,4111.4,4110.4,14.5]
[1760116200605,0.5185893,4111.3,4110.4,14.5]
[1760116200814,3.00236966,4112.0,4110.5,0.49342794]
[1760116201118,5.6919,4111.9,4111.1,2.43242364]
[1760116201273,0.51883229,4111.8,4111.1,2.43242364]
[1760116201976,0.51883229,4111.8,4111.0,2.43169428]
[1760116202195,0.51883229,4111.8,4111.2,2.43233533]
[1760116202396,0.51883229,4111.8,4110.5,0.4691]
[1760116202397,5.69286372,4111.9,4111.1,2.43242659]
[1760116202598,5.46396372,4111.9,4110.9,0.4691]
[1760116202824,5.46396372,4111.9,4111.4,2.43221553]
[1760116203178,5.89156372,4111.9,4111.4,2.43221553]
[1760116203374,0.4276,4111.8,4110.9,0.4691]
[1760116203583,0.4276,4111.8,4111.3,2.43231293]
[1760116203774,5.69766372,4111.9,4110.9,0.4691]
[1760116203775,5.46396372,4111.9,4110.9,0.4691]
[1760116203991,5.46396372,4111.9,4111.0,0.02432498]
[1760116204289,0.00096372,4111.9,4111.4,2.43225065]
[1760116204503,0.00096372,4111.9,4111.5,2.3891]
[1760116204814,0.00096372,4111.9,4111.8,14.5]
[1760116205177,0.00096372,4111.9,4111.8,17.4011249]
[1760116205819,0.00096372,4111.9,4111.8,16.9320249]
[1760116206044,0.00096372,4111.9,4111.8,14.5]
[1760116206313,0.00096372,4111.9,4109.8,2.43518884]
[1760116206314,2.59296372,4111.9,4110.2,0.4691]
[1760116206500,2.59296372,4111.9,4110.7,2.4326738]
[1760116206727,2.59296372,4111.9,4110.8,16.93260833]
[1760116206920,2.59296372,4111.9,4109.8,0.002]
[1760116206921,0.4365,4111.8,4109.8,0.002]
[1760116207121,0.1216,4111.0,4109.8,2.9042667]
[1760116207321,3.9766,4111.0,4110.5,2.43277828]
[1760116207632,3.9766,4111.0,4110.7,2.43265128]
[1760116208214,3.9766,4111.0,4110.5,14.5]
[1760116208412,3.9766,4111.0,4110.3,0.1216]
[1760116208733,0.23436372,4111.9,4110.4,0.02432853]
[1760116208734,3.855,4111.1,4110.4,0.02432853]
[1760116208937,3.855,4111.2,4111.1,2.432439]
[1760116209323,3.855,4111.2,4110.7,2.90176552]
[1760116209513,3.855,4111.2,4110.6,0.1216]
[1760116210044,3.855,4111.2,4110.7,14.5]
[1760116210244,3.855,4111.2,4110.9,2.4325231]
[1760116210446,3.855,4111.2,4110.8,2.43261652]
[1760116210607,3.855,4111.2,4110.7,2.4326757]
[1760116210948,3.855,4111.2,4110.6,0.1216]
[1760116211106,3.855,4111.2,4110.8,14.5]
[1760116211309,0.00096372,4111.9,4110.9,0.4691]
[1760116211534,3.9756,4111.8,4111.5,2.432192]
[1760116211850,3.9756,4111.8,4111.4,2.43220679]
[1760116212054,3.854,4111.8,4111.6,2.43211965]
[1760116212346,3.854,4111.8,4111.7,2.43208405]
[1760116212543,3.854,4111.8,4111.4,2.43220282]
[1760116212703,0.4386,4111.7,4111.1,2.4324377]
[1760116212904,0.4386,4111.7,4110.8,14.5]
[1760116213155,3.854,4111.8,4111.4,2.43220667]
[1760116213508,3.854,4111.8,4110.9,0.4691]
[1760116213708,3.854,4111.8,4111.4,2.43221899]
[1760116213909,3.854,4111.8,4110.9,0.4691]
[1760116214163,0.4363,4111.7,4110.8,14.5]
[1760116214670,3.854,4111.8,4110.8,14.5]
[1760116214971,3.854,4111.8,4111.3,2.43232055]
[1760116215174,3.854,4111.8,4111.5,2.43219696]
[1760116215375,0.00096372,4111.9,4110.9,0.49342557]
[1760116215674,3.85496372,4111.9,4110.9,0.4691]
[1760116215993,3.85496372,4111.9,4110.8,14.5]
[1760116216179,0.4417,4111.8,4110.8,14.5]
[1760116216562,10.0,4111.6,4109.8,0.002]
[1760116216895,30.0,4111.2,4109.8,0.002]
[1760116217095,3.854,4111.1,4109.8,0.002]
[1760116217394,2.43249817,4111.0,4109.8,0.002]
[1760116217696,1.92,4111.0,4109.8,0.002]
[1760116217915,2.43273486,4110.7,4109.8,2.4352032]
[1760116218134,5.88,4110.6,4109.8,0.002]
[1760116218344,30.0,4110.5,4109.8,0.002]
[1760116218630,2.43285699,4110.4,4109.8,0.002]
[1760116218784,9.712,4110.5,4109.8,0.002]
[1760116218985,2.43295482,4110.3,4109.8,0.002]
[1760116219237,6.3217,4110.6,4109.8,0.002]
[1760116219238,10.4417,4110.4,4109.8,0.002]
[1760116219387,0.4417,4110.2,4109.8,0.002]
[1760116219586,3.853,4110.1,4109.8,0.002]
[1760116220037,4.2947,4110.1,4109.8,0.002]
[1760116220700,3.853,4110.1,4109.8,0.002]
[1760116221487,4.56194922,4109.9,4109.8,0.002]
[1760116221687,19.51516394,4109.9,4109.8,0.002]
[1760116221943,2.3593,4109.9,4109.8,0.002]
[1760116222090,0.4393,4109.9,4109.8,0.002]
[1760116222291,6.0016,4109.9,4109.8,0.002]
[1760116223242,6.4364,4109.9,4109.8,0.002]
[1760116223652,30.0,4109.8,4109.3,0.002]
[1760116223947,41.92,4109.4,4109.3,0.002]
[1760116224135,35.773,4109.4,4109.3,0.002]
[1760116224452,38.63924527,4109.4,4109.3,0.002]
[1760116224658,36.2058,4109.4,4109.3,0.002]
[1760116225126,9.79111992,4109.4,4109.3,0.002]
[1760116225320,37.35767465,4109.4,4109.3,0.002]
[1760116225956,39.79111992,4109.4,4109.3,0.002]
[1760116226122,7.35767465,4109.4,4109.3,0.002]
[1760116226321,36.8394,4109.4,4109.3,0.002]
[1760116226524,27.6048,4109.4,4109.3,0.002]
[1760116226725,13.9438,4109.4,4109.3,0.002]
[1760116227038,16.89478569,4109.4,4109.3,0.002]
[1760116227237,40.66724527,4109.4,4109.3,0.002]
[1760116228321,11.30084527,4109.4,4109.3,0.002]
[1760116228525,41.30084527,4109.4,4109.3,0.002]
[1760116229753,41.81759602,4109.4,4109.3,0.002]
[1760116230057,41.81759602,4109.4,4108.9,0.002]
[1760116230058,3.06728216,4109.0,4108.9,0.002]
[1760116230222,54.72489417,4109.0,4108.9,0.002]
[1760116230418,55.67444492,4109.0,4108.9,0.002]
[1760116230620,56.64351875,4109.0,4108.9,0.002]
[1760116231436,34.98757833,4108.5,4108.4,0.002]
[1760116231752,2.5536,4107.8,4105.6,2.87268812]
[1760116231953,30.0,4107.5,4105.8,2.43557783]
[1760116232156,1.92,4107.2,4105.9,2.43551791]
[1760116232358,5.774,4107.1,4106.4,2.43520338]
[1760116232514,5.882,4107.0,4106.1,2.43540018]
[1760116232858,5.882,4107.0,4105.6,2.87268065]
[1760116232859,6.258,4107.0,4105.6,0.437]
[1760116233079,6.258,4107.0,4105.8,2.43552788]
[1760116233291,6.258,4107.0,4105.9,2.43546238]
[1760116233292,0.376,4106.9,4105.9,2.43546238]
[1760116233444,3.854,4106.8,4106.7,2.43504517]
[1760116233640,0.2282,4107.8,4106.7,0.437]
[1760116233981,0.1216,4107.3,4107.2,2.43474873]
[1760116234181,3.9756,4107.3,4107.2,2.43474873]
[1760116234388,0.1216,4107.3,4107.2,2.43474873]
[1760116234548,2.028,4107.7,4107.6,2.43451163]
[1760116234745,0.4612,4108.5,4107.2,0.437]
[1760116235089,5.882,4108.4,4108.3,2.43409682]
[1760116235295,2.028,4108.8,4108.7,2.43385985]
[1760116235579,3.854,4109.0,4108.9,2.43374139]
[1760116236741,3.854,4109.0,4107.8,0.1643]
[1760116236942,0.4489,4109.4,4108.0,2.43422794]
[1760116237144,0.4489,4109.4,4107.8,0.1643]
[1760116237145,3.185,4109.3,4109.1,2.43362161]
[1760116237440,3.185,4109.3,4107.8,0.1643]
[1760116237441,3.6339,4109.3,4107.8,0.1643]
[1760116237647,0.1545,4109.8,4108.2,2.45849763]
[1760116237874,6.0394,4109.7,4108.3,0.437]
[1760116238281,6.0394,4109.7,4108.5,2.43396296]
[1760116238282,0.446,4109.6,4108.5,2.43396296]
[1760116238485,0.446,4109.5,4108.6,2.43386355]
[1760116238650,0.446,4109.5,4108.6,2.43391537]
[1760116238856,6.0394,4109.7,4108.2,2.43414707]
[1760116238857,30.0,4109.3,4108.2,2.43414707]
[1760116239148,0.446,4109.2,4107.6,0.437]
[1760116239354,1.905,4109.1,4107.7,4.37879688]
[1760116239675,1.905,4109.0,4108.7,2.43381008]
[1760116239882,1.905,4109.0,4107.8,0.437]
[1760116239883,1.905,4109.0,4108.2,0.1643]
[1760116240067,1.905,4109.0,4108.7,2.43380943]
[1760116240266,1.905,4109.0,4107.8,0.437]
[1760116240267,0.446,4108.9,4107.8,0.437]
[1760116240479,1.905,4109.0,4107.8,0.437]
[1760116240790,1.905,4109.0,4108.5,2.43393058]
[1760116241089,0.446,4108.9,4107.8,0.437]
[1760116241389,0.446,4108.9,4107.6,1.92]
[1760116241589,0.446,4108.9,4107.4,0.437]
[1760116241797,30.0,4108.8,4106.9,0.437]
[1760116242089,30.0,4108.6,4106.7,0.437]
[1760116242293,1.92,4108.3,4106.6,0.002]
[1760116242490,6.38220223,4108.2,4106.7,2.43504517]
[1760116242708,1.92,4108.0,4106.6,0.002]
[1760116242912,30.0,4107.7,4106.6,0.002]
[1760116243195,7.801,4107.6,4106.6,0.002]
[1760116243361,5.881,4107.5,4107.0,2.43481974]
[1760116243693,12.366,4107.9,4107.0,2.43481974]
[1760116243694,3.853,4107.4,4107.0,2.43481974]
[1760116243867,3.853,4107.3,4106.9,2.43491954]
[1760116244071,3.853,4107.2,4106.8,2.43497291]
[1760116244391,2.43410161,4108.3,4106.6,2.43708559]
[1760116244392,0.64459495,4108.7,4106.9,0.46134926]
[1760116244606,0.1216,4108.3,4107.8,2.43438265]
[1760116244902,12.43352353,4109.3,4108.4,2.43400581]
[1760116244903,17.394,4109.2,4108.4,2.43400581]
[1760116245101,5.881,4109.1,4108.3,2.43407933]
[1760116245288,1.92,4109.0,4108.3,2.43407933]
[1760116245466,1.92,4109.0,4107.9,0.437]
[1760116245661,1.92,4109.1,4108.3,2.4340864]
[1760116245862,1.92,4108.9,4107.9,2.43430811]
[1760116246092,1.92,4108.9,4107.4,0.437]
[1760116246277,1.92,4108.9,4108.1,2.43421103]
[1760116246480,2.43657399,4108.9,4108.2,2.43415503]
[1760116246702,2.43657399,4108.9,4105.5,0.12210211]
[1760116246703,30.44,4108.8,4106.9,0.4691]
[1760116246999,18.735,4108.6,4107.7,2.43441142]
[1760116247202,3.853,4108.5,4107.5,2.43455709]
[1760116247384,3.853,4108.5,4107.1,2.43480801]
[1760116247587,0.44,4108.8,4107.1,1.92]
[1760116247786,2.029,4109.0,4108.9,2.43374139]
[1760116248012,5.882,4109.0,4108.1,0.1643]
[1760116248591,5.882,4109.0,4108.2,2.43415607]
[1760116248793,0.001,4109.0,4108.7,2.4338045]
[1760116248993,3.852,4108.9,4108.5,2.43397654]
[1760116249193,3.852,4108.9,4108.6,2.43391321]
[1760116249393,0.001,4109.0,4108.8,2.43380062]
[1760116249591,0.001,4109.0,4108.9,2.43374139]
[1760116249989,0.001,4109.0,4108.9,2.88854139]
[1760116250219,0.001,4109.0,4108.1,0.1643]
[1760116250220,0.001,4109.0,4108.5,0.4548]
[1760116250431,0.001,4109.0,4108.1,0.6191]
[1760116250731,0.001,4109.0,4108.9,2.43374139]
[1760116251429,0.001,4109.0,4108.4,0.4548]
[1760116251609,0.001,4109.0,4108.7,2.43385088]
[1760116251804,0.001,4109.0,4108.4,0.4548]
[1760116252004,0.001,4109.0,4108.9,2.43374139]
[1760116252205,0.001,4109.0,4108.8,2.43378204]
[1760116252431,0.001,4109.0,4108.9,2.43374139]
[1760116253003,0.001,4109.0,4108.1,0.1643]
[1760116253004,0.001,4109.0,4108.1,0.6191]
[1760116253610,0.001,4109.0,4107.6,2.3748]
[1760116253813,0.4629,4108.9,4107.6,0.4548]
[1760116254041,0.4629,4108.9,4107.2,2.43474873]
[1760116254327,11.921,4109.0,4108.5,2.4339312]
[1760116254328,3.851,4108.8,4108.5,2.4339312]
[1760116254629,0.001,4109.0,4108.5,2.43392608]
[1760116254834,0.1216,4108.8,4108.4,2.43403758]
[1760116254996,0.1216,4108.8,4108.6,2.43389051]
[1760116255200,3.851,4108.7,4108.6,2.43389051]
[1760116255418,0.1216,4108.8,4108.7,2.43385985]
[1760116255610,3.9726,4108.8,4108.7,2.43385985]
[1760116255831,0.001,4109.0,4108.9,2.43374139]
[1760116256027,5.88,4109.0,4108.8,2.43379767]
[1760116256341,5.88,4109.0,4108.9,2.43374139]
[1760116256641,3.852,4109.0,4108.9,2.43374139]
[1760116256854,0.001,4109.0,4108.9,2.88854139]
[1760116257145,0.001,4109.0,4108.9,3.01014139]
[1760116258039,0.001,4109.0,4108.9,3.0344788]
[1760116258247,0.001,4109.0,4108.9,3.01014139]
[1760116259356,0.001,4109.0,4108.9,0.1216]
[1760116259827,0.001,4109.0,4108.9,2.55534139]
[1760116260149,0.001,4109.0,4108.9,2.43374139]
[1760116260600,0.001,4109.0,4108.7,0.1216]
[1760116261041,0.001,4109.0,4108.8,2.43374498]
[1760116261229,0.001,4109.0,4108.9,2.43374139]
[1760116261598,0.001,4109.0,4108.9,2.88854139]
[1760116262139,0.001,4109.0,4108.9,3.01014139]
[1760116262341,0.001,4109.0,4108.9,0.1216]
[1760116262511,0.001,4109.0,4108.9,2.43374139]
[1760116263165,0.001,4109.0,4108.9,19.55169081]
[1760116263306,0.001,4109.0,4108.9,19.5273534]
[1760116263617,0.001,4109.0,4108.9,5.56374139]
[1760116263811,0.001,4109.0,4108.9,5.10894139]
[1760116264039,0.001,4109.0,4108.9,5.56374139]
[1760116264281,0.001,4109.0,4108.9,2.55534139]
[1760116264540,0.001,4109.0,4108.1,0.6191]
[1760116265039,0.001,4109.0,4108.9,2.43374139]
[1760116265528,0.001,4109.0,4108.9,2.88854139]
[1760116266627,0.001,4109.0,4108.9,2.43374139]
[1760116266833,0.001,4109.0,4108.1,2.59850397]
[1760116267035,0.3823,4108.9,4107.8,0.002]
[1760116267745,30.0,4108.8,4107.8,0.002]
[1760116268081,1.92,4108.5,4107.8,0.002]
[1760116268218,1.92,4108.1,4107.8,0.002]
[1760116268563,30.64459495,4108.0,4107.8,0.002]
[1760116268741,0.51841892,4107.9,4107.8,0.002]
[1760116269049,0.3823,4107.9,4107.8,0.002]
[1760116269220,32.81663384,4107.9,4107.8,0.002]
[1760116269555,33.33505276,4107.9,4107.8,0.002]
[1760116270120,0.90071892,4107.9,4107.8,0.002]
[1760116270319,8.1793,4107.9,4107.8,0.002]
[1760116270514,8.69771892,4107.9,4107.8,0.002]
[1760116270744,6.2593,4107.9,4107.8,0.002]
[1760116271178,0.3823,4107.9,4107.8,0.002]
[1760116271367,6.2593,4107.9,4107.8,0.002]
[1760116271564,5.877,4107.9,4107.8,0.002]
[1760116271876,6.2593,4107.9,4107.8,0.002]
[1760116272172,51.1307003,4107.9,4107.8,0.002]
[1760116272387,38.69636646,4107.9,4107.8,0.002]
[1760116272755,36.66836646,4107.9,4107.8,0.002]
[1760116272987,38.69636646,4107.9,4107.8,0.002]
[1760116273171,11.1307003,4107.9,4107.8,0.002]
[1760116273347,11.7643003,4107.9,4107.8,0.002]
[1760116273552,41.7643003,4107.9,4107.8,0.002]
[1760116274048,11.7643003,4107.9,4107.8,0.002]
[1760116274247,41.7643003,4107.9,4107.8,0.002]
[1760116274582,42.62790887,4107.9,4107.8,0.002]
[1760116274760,41.7643003,4107.9,4107.8,0.002]
[1760116275347,41.7643003,4107.9,4105.3,0.1216]
[1760116275348,30.0,4105.3,4103.3,0.1216]
[1760116275543,37.798,4105.3,4103.6,0.1216]
[1760116275747,37.798,4105.3,4103.3,0.6252]
[1760116275748,5.583,4105.3,4103.9,0.1216]
[1760116275981,0.64512448,4106.0,4103.7,0.02436825]
[1760116275982,0.384,4105.8,4104.9,2.43606501]
[1760116276195,0.384,4105.8,4104.5,0.1216]
[1760116276486,0.1216,4105.3,4104.5,0.1216]
[1760116276683,0.1216,4105.3,4104.8,2.43616563]
[1760116276889,0.1216,4105.3,4104.8,2.55775695]
[1760116277081,0.1216,4105.3,4104.8,0.1216]
[1760116277381,0.1216,4105.3,4105.1,2.43598757]
[1760116277685,0.1216,4105.3,4105.2,2.43893491]
[1760116277870,3.849,4105.5,4105.4,2.43581624]
[1760116278199,0.3871,4106.6,4105.5,2.4357041]
[1760116278200,3.849,4105.7,4105.5,2.4357041]
[1760116278403,3.849,4105.7,4105.4,2.43581624]
[1760116278602,3.849,4105.7,4105.5,0.02435756]
[1760116278766,3.849,4105.7,4105.2,2.56053001]
[1760116279103,3.849,4105.7,4105.6,2.43569758]
[1760116279303,3.849,4105.7,4105.3,14.5]
[1760116279505,3.849,4105.7,4105.4,2.43581624]
[1760116279682,0.64512448,4107.9,4105.8,2.43557893]
[1760116279864,3.849,4107.7,4106.7,2.43499751]
[1760116280187,2.3071,4107.6,4106.8,14.5]
[1760116280364,2.029,4107.5,4106.8,14.5]
[1760116280566,30.0,4107.4,4106.6,2.43504907]
[1760116280767,0.3871,4107.6,4106.5,0.02435163]
[1760116280977,0.493,4107.5,4106.7,2.43499344]
[1760116281198,0.493,4107.4,4107.0,2.43486501]
[1760116281404,0.3871,4107.3,4106.9,2.43491564]
[1760116281704,0.3871,4107.3,4106.8,14.5]
[1760116281705,0.3871,4107.2,4106.8,14.5]
[1760116281869,0.3871,4107.1,4104.4,2.43636542]
[1760116282072,1.92,4106.7,4104.4,0.4727]
[1760116282299,30.0,4106.4,4105.3,2.43587557]
[1760116282500,30.0,4106.2,4104.6,2.43628054]
[1760116282800,30.0,4106.2,4104.7,1.92]
[1760116282999,0.3871,4106.1,4105.1,2.43594849]
[1760116283209,30.0,4106.0,4105.1,2.4359869]
[1760116283388,30.0,4106.0,4105.3,2.43583187]
[1760116283594,30.0,4106.0,4104.5,14.5]
[1760116283595,0.3871,4105.9,4104.5,14.5]
[1760116283792,2.567,4105.6,4104.5,14.5]
[1760116284012,15.97,4105.4,4104.5,14.5]
[1760116284174,43.849,4105.3,4104.5,14.5]
[1760116284373,36.1561,4105.3,4104.5,14.5]
[1760116284576,13.6301,4105.3,4104.5,14.5]
[1760116284775,14.9621,4105.3,4104.5,14.5]
[1760116284997,14.9621,4105.3,4103.6,0.4727]
[1760116285274,14.9621,4105.3,4104.4,2.43640826]
[1760116285607,14.9621,4105.3,4104.4,2.43640254]
[1760116285774,36.1561,4105.3,4104.1,14.5]
[1760116285969,17.0851,4105.3,4104.1,14.5]
[1760116286175,17.0851,4105.3,4105.1,0.002]
[1760116286176,5.769,4105.3,4105.1,0.002]
[1760116286483,0.3871,4105.8,4105.2,2.43888843]
[1760116286701,1.92,4105.6,4105.3,2.43585706]
[1760116286904,1.92,4105.6,4105.2,2.43892862]
[1760116287197,1.92,4105.6,4105.2,0.003]
[1760116287373,3.849,4105.8,4105.2,0.003]
[1760116287812,3.849,4105.8,4105.6,2.43565615]
[1760116288103,3.849,4105.8,4105.2,0.003]
[1760116288104,3.849,4105.8,4105.7,2.43563825]
[1760116288274,3.849,4105.8,4105.4,2.43580184]
[1760116288474,3.849,4105.8,4105.2,0.003]
[1760116288670,3.849,4105.8,4105.7,2.43563825]
[1760116289174,3.849,4105.8,4105.2,0.003]
[1760116289464,3.849,4105.8,4105.7,2.43563825]
[1760116289570,3.849,4105.8,4105.2,0.003]
[1760116289774,1.92,4105.6,4105.2,0.003]
[1760116289973,5.879,4105.5,4105.2,0.003]
[1760116290201,3.849,4105.4,4105.2,0.003]
[1760116290404,0.3871,4106.6,4105.2,0.003]
[1760116290706,1.92,4106.4,4105.3,0.4727]
[1760116290906,1.92,4106.4,4105.8,2.43556916]
[1760116291123,1.92,4106.4,4105.5,14.5]
[1760116291303,1.92,4106.2,4105.5,14.5]
[1760116291473,30.3871,4106.3,4105.5,14.5]
[1760116291474,0.3871,4106.3,4105.5,14.5]
[1760116291675,2.03,4107.0,4106.9,2.43492368]
[1760116291916,0.3871,4107.8,4106.4,0.65795223]
[1760116292133,0.64512448,4108.5,4107.9,2.43433384]